[Event "WYCC 2018 O16"]
[Site "Halkidiki"]
[Date "2018.10.28"]
[Round "9"]
[White "Wijesinghe, N L C Dojitha"]
[Black "Lou, Vincent"]
[Result "0-1"]
[ECO "B90"]
[WhiteElo "1688"]
[BlackElo "2155"]
[Annotator "NA"]
[PlyCount "98"]
[EventDate "2018.10.20"]
[EventType "swiss"]
[EventCountry "GRE"]
[SourceTitle "playchess.com"]
[Source "ChessBase"]
[SourceQuality "1"]
[TimeControl "40/5400+30:1800+30"]

1. e4 {[%emt 0:00:00]} c5 {[%emt 0:00:00]} 2. Nf3 {[%emt 0:00:20]} d6 {[%emt 0:00:00]} 3. d4 {[%emt 0:00:04]} cxd4 {[%emt 0:00:00]} 4. Nxd4 {[%emt 0:00:05]} Nf6 {[%emt 0:00:00]} 5. Nc3 {[%emt 0:00:04]} a6 {[%emt 0:00:00]} 6. h3 {[%emt 0:01:04]} e5 {[%emt 0:01:22]} 7. Nde2 {[%emt 0:03:25]} Be7 {[%emt 0:03:10]} 8. g4 {[%emt 0:00:23]} Nc6 {[%emt 0:04:20]} 9. Bg2 {[%emt 0:00:12]} b5 {[%emt 0:06:43]} 10. Be3 {[%emt 0:01:22]} Bb7 {[%emt 0:04:45]} 11. Ng3 {[%emt 0:06:22]} b4 {[%emt 0:06:19]} 12. Na4 {[%emt 0:10:11]} g6 {[%emt 0:05:51]} 13. Bb6 {[%emt 0:10:31]} Qc8 {[%emt 0:03:02]} 14. Be3 {[%emt 0:14:09]} Nd7 {[%emt 0:04:50]} 15. c4 Nd8 {[%emt 0:03:26]} 16. b3 {[%emt 0:05:42]} Ne6 {[%emt 0:00:19]} 17. O-O {[%emt 0:04:14]} Qc7 {[%emt 0:11:06]} 18. Nb2 {[%emt 0:05:17]} Ndc5 {[%emt 0:07:24]} 19. Qd2 {[%emt 0:10:29]} a5 {[%emt 0:00:32]} 20. Rfd1 {[%emt 0:00:21]} O-O {[%emt 0:04:15]} 21. Qc2 {[%emt 0:01:17]} Rfd8 {[%emt 0:04:08]} 22. Rdc1 {[%emt 0:03:37]} Bg5 {[%emt 0:03:11]} 23. Bxg5 {[%emt 0:05:15]} Nxg5 {[%emt 0:00:14]} 24. Nd1 {[%emt 0:02:40]} Nge6 {[%emt 0:02:47]} 25. Ne2 {[%emt 0:03:52]} Qe7 {[%emt 0:02:42]} 26. Qd2 {[%emt 0:01:27]} Bxe4 {[%emt 0:03:53]} 27. f3 {[%emt 0:02:24]} Bc6 {[%emt 0:00:45]} 28. Ne3 {[%emt 0:00:43]} Qg5 {[%emt 0:06:45]} 29. Rd1 {[%emt 0:00:29]} Nf4 {[%emt 0:01:03]} 30. Nxf4 {[%emt 0:01:19]} Qxf4 {[%emt 0:01:36]} 31. Nd5 {[%emt 0:00:30]} Qxd2 {[%emt 0:01:07]} 32. Rxd2 {[%emt 0:00:03]} Bxd5 {[%emt 0:04:29]} 33. Rxd5 {[%emt 0:00:09]} Kf8 {[%emt 0:01:11]} 34. f4 {[%emt 0:01:12]} exf4 {[%emt 0:01:00]} 35. Rad1 {[%emt 0:01:11]} Ke7 {[%emt 0:00:28]} 36. g5 {[%emt 0:01:13]} a4 {[%emt 0:01:45]} 37. Re1+ {[%emt 0:02:03]} Ne6 {[%emt 0:01:04]} 38. Rb5 {[%emt 0:01:15]} Ra7 {[%emt 0:01:52]} 39. Rxb4 {[%emt 0:00:20]} axb3 {[%emt 0:00:14]} 40. axb3 {[%emt 0:00:00]} Rc8 {[%emt 0:00:00]} 41. h4 {[%emt 0:01:17]} h6 {[%emt 0:09:48]} 42. gxh6 {[%emt 0:12:40]} Rh8 {[%emt 0:00:41]} 43. h5 {[%emt 0:00:39]} gxh5 {[%emt 0:01:57]} 44. Rb5 {[%emt 0:02:01]} Rxh6 {[%emt 0:00:24]} 45. Kf2 {[%emt 0:02:20]} Ra2+ {[%emt 0:01:37]} 46. Kf1 {[%emt 0:01:49]} h4 {[%emt 0:04:15]} 47. Bh3 {[%emt 0:05:09]} Rh2 {[%emt 0:03:51]} 48. Bxe6 {[%emt 0:00:45]} Rh1+ {[%emt 0:01:55]} 49. Ke2 {[%emt 0:00:14]} Rxe6+ {[%emt 0:00:11]} 0-1

[Event "WYCC 2018 O16"]
[Site "Halkidiki"]
[Date "2018.10.29"]
[Round "10"]
[White "Sargsyan, Shant"]
[Black "Golikov, Daniil"]
[Result "1-0"]
[ECO "E16"]
[WhiteElo "2463"]
[BlackElo "2319"]
[Annotator "RC"]
[PlyCount "87"]
[EventDate "2018.10.20"]
[EventType "swiss"]
[EventCountry "GRE"]
[SourceTitle "playchess.com"]
[Source "ChessBase"]
[SourceQuality "1"]
[TimeControl "40/5400+30:1800+30"]

1. d4 {[%emt 0:00:53]} Nf6 {[%emt 0:00:00]} 2. c4 {[%emt 0:00:45]} e6 {[%emt 0:00:00]} 3. Nf3 {[%emt 0:00:27]} Bb4+ {[%emt 0:00:06]} 4. Bd2 {[%emt 0:00:49]} Qe7 {[%emt 0:00:08]} 5. g3 {[%emt 0:00:46]} Bxd2+ {[%emt 0:02:02]} 6. Qxd2 {[%emt 0:00:29]} Nc6 {[%emt 0:00:13]} 7. e3 {[%emt 0:01:06]} d5 {[%emt 0:00:39]} 8. Qc3 {[%emt 0:00:56]} dxc4 {[%emt 0:11:47]} 9. Nbd2 {[%emt 0:11:31]} O-O {[%emt 0:01:58]} 10. Nxc4 {[%emt 0:02:47]} b6 {[%emt 0:02:48]} 11. Bg2 {[%emt 0:03:03]} Bb7 {[%emt 0:00:11]} 12. O-O {[%emt 0:05:16]} Nb4 {[%emt 0:03:37]} 13. a3 {[%emt 0:06:00]} Nbd5 {[%emt 0:00:52]} 14. Qc2 {[%emt 0:00:24]} Nd7 {[%emt 0:06:20]} 15. e4 {[%emt 0:03:54]} N5f6 {[%emt 0:00:10]} 16. Rfe1 {[%emt 0:00:22]} Rfd8 {[%emt 0:03:40]} 17. Rad1 {[%emt 0:01:40]} Qf8 {[%emt 0:08:15]} 18. e5 {[%emt 0:02:08]} Nd5 {[%emt 0:00:50]} 19. Ng5 {[%emt 0:00:27]} g6 {[%emt 0:00:16]} 20. h4 {[%emt 0:02:09]} Qe7 {[%emt 0:02:44]} 21. Ne3 {[%emt 0:13:25]} c6 {[%emt 0:14:35]} 22. Ng4 {[%emt 0:03:30]} Kg7 {[%emt 0:01:26]} 23. Bxd5 {[%emt 0:01:33]} cxd5 {[%emt 0:00:20]} 24. Qd2 {[%emt 0:01:31]} h5 {[%emt 0:03:45]} 25. Nh2 {[%emt 0:02:11]} a5 {[%emt 0:04:48]} 26. Re3 {[%emt 0:01:32]} Rf8 {[%emt 0:00:58]} 27. Rde1 {[%emt 0:01:24]} Rae8 {[%emt 0:05:24]} 28. Rf3 {[%emt 0:00:59]} f5 {[%emt 0:00:17]} 29. exf6+ {[%emt 0:01:07]} Rxf6 {[%emt 0:00:02]} 30. Rfe3 {[%emt 0:01:28]} Qd6 {[%emt 0:02:12]} 31. Nhf3 {[%emt 0:00:08]} Bc8 {[%emt 0:02:55]} 32. Ne5 {[%emt 0:01:32]} Rf5 {[%emt 0:01:00]} 33. Qc2 {[%emt 0:01:24]} Nxe5 {[%emt 0:03:16]} 34. Rxe5 {[%emt 0:00:22]} Rxe5 {[%emt 0:04:10]} 35. Rxe5 {[%emt 0:00:15]} Bd7 {[%emt 0:00:22]} 36. Kg2 {[%emt 0:04:52]} Rf8 {[%emt 0:04:16]} 37. Qe2 {[%emt 0:02:14]} Rf6 {[%emt 0:01:13]} 38. Re3 {[%emt 0:00:14]} b5 {[%emt 0:03:51]} 39. Rf3 {[%emt 0:00:00]} Rxf3 {[%emt 0:00:00]} 40. Nxf3 {[%emt 0:00:00]} Be8 {[%emt 0:00:00]} 41. Qe3 {[%emt 0:04:13]} Bf7 {[%emt 0:02:06]} 42. Ne5 {[%emt 0:00:56]} b4 {[%emt 0:02:42]} 43. Qh6+ {[%emt 0:00:09]} Kg8 {[%emt 0:00:41]} 44. Qh8+ {[%emt 0:00:05]} 1-0

[Event "WYCC 2018 O16"]
[Site "Halkidiki"]
[Date "2018.10.29"]
[Round "10"]
[White "Vlachos, Anatole"]
[Black "Loiacono, Leonardo"]
[Result "1/2-1/2"]
[ECO "A45"]
[WhiteElo "2435"]
[BlackElo "2277"]
[Annotator "NA"]
[PlyCount "94"]
[EventDate "2018.10.20"]
[EventType "swiss"]
[EventCountry "GRE"]
[SourceTitle "playchess.com"]
[Source "ChessBase"]
[SourceQuality "1"]
[TimeControl "40/5400+30:1800+30"]

1. d4 {[%emt 0:00:00]} Nf6 {[%emt 0:00:00]} 2. Bf4 {[%emt 0:00:00]} e6 {[%emt 0:00:00]} 3. e3 {[%emt 0:00:00]} d5 {[%emt 0:00:02]} 4. Nd2 {[%emt 0:00:07]} Bd6 {[%emt 0:00:10]} 5. Bxd6 {[%emt 0:00:06] D00: Damenbauernspiele} (5. Ngf3 Bxf4 6. exf4 Nbd7 7. Bd3 c5 8. c3 Qb6 9. Rb1 Qd6 10. g3 b6 11. O-O Bb7 12. Re1 O-O 13. b4 cxb4 14. cxb4 {1-0 (75) Nakamura,H (2769)-Aronian,L (2764) Leuven 2018}) 5... Qxd6 {[%emt 0:01:24]} 6. f4 {[%emt 0:00:21]} b6 {[%emt 0:03:14]} 7. Ngf3 {[%emt 0:00:29]} Ng4 $146 {[%emt 0:08:37]} ({Vorgänger:} 7... Bb7 8. Bd3 c5 9. c3 Nc6 10. Ne5 O-O 11. Qf3 Ne7 12. g4 Qd8 {1-0 (32) Moiseenko,V (2520)-Mirzoian,M (2292) Taganrog 2017}) 8. Qe2 {[%emt 0:02:42]} Ba6 {[%emt 0:01:09]} 9. c4 {[%emt 0:00:07]} dxc4 {[%emt 0:03:45]} 10. Ne5 {[%emt 0:04:05]} Nxe5 $1 {[%emt 0:04:13]} 11. dxe5 {[%emt 0:10:53]} Qb4 {[%emt 0:03:58]} 12. Qf3 $1 {[%emt 0:00:16]} c6 {[%emt 0:00:44]} 13. O-O-O {[%emt 0:00:30]} c3 {[%emt 0:03:50]} 14. Nb3 {[%emt 0:00:23]} Bxf1 {[%emt 0:01:28]} 15. Rhxf1 {[%emt 0:00:35]} cxb2+ {[%emt 0:00:34]} 16. Kb1 {[%emt 0:05:01]} ({White should play} 16. Kxb2 $15 O-O 17. Rd4) 16... O-O {[%emt 0:01:06]} 17. Nd4 {[%emt 0:11:11]} Na6 {[%emt 0:06:16]} 18. f5 {[%emt 0:06:27] [#]} Qa3 {[%emt 0:14:01]} (18... Qc4 $1 $19 19. Qxc6 Nc5) 19. Rf2 {[%emt 0:06:09]} Nc5 {[%emt 0:07:26]} 20. f6 {[%emt 0:08:51]} Rfd8 {[%emt 0:05:30]} 21. Rxb2 {[%emt 0:05:30]} Nd3 {[%emt 0:08:09]} 22. Rb3 {[%emt 0:07:55]} Nxe5 {[%emt 0:00:04]} 23. Rxa3 {[%emt 0:02:10]} Nxf3 $11 {[%emt 0:02:41]} 24. gxf3 {[%emt 0:00:02]} c5 {[%emt 0:00:30]} 25. Rg1 {[%emt 0:00:02]} cxd4 {[%emt 0:00:15]} 26. Rxg7+ {[%emt 0:00:02]} Kh8 {[%emt 0:01:58]} 27. exd4 {[%emt 0:05:41]} Rd7 {[%emt 0:02:00]} 28. Rc3 {[%emt 0:02:24]} h6 {[%emt 0:00:12]} 29. Rg4 {[%emt 0:04:41]} Rg8 {[%emt 0:00:46]} 30. Rf4 {[%emt 0:00:00]} Kh7 {[%emt 0:00:26]} 31. Rc2 {[%emt 0:01:18]} Rg5 {[%emt 0:00:45]} 32. h4 {[%emt 0:03:35]} Rf5 {[%emt 0:02:35]} 33. Rxf5 {[%emt 0:00:00]} exf5 {[%emt 0:00:07]} 34. Rg2 {[%emt 0:00:15]} Rxd4 {[%emt 0:00:29]} 35. Rg7+ {[%emt 0:00:33]} Kh8 {[%emt 0:00:05]} 36. h5 {[%emt 0:00:43]} Rd7 {[%emt 0:02:07]} 37. a4 {[%emt 0:02:49]} a6 {[%emt 0:00:17]} 38. Kc2 {[%emt 0:00:15]} Rd4 {[%emt 0:02:50]} 39. Rxf7 {[%emt 0:00:20]} Kg8 {[%emt 0:00:04]} 40. Rg7+ {[%emt 0:00:00]} Kf8 {[%emt 0:00:00]} 41. Rb7 {[%emt 0:07:19]} Rxa4 {[%emt 0:00:34]} 42. Rxb6 {[%emt 0:00:10]} Kf7 {[%emt 0:00:06]} 43. Kd3 {[%emt 0:00:36]} Ra3+ {[%emt 0:02:13]} 44. Kd4 {[%emt 0:00:12]} Rxf3 {[%emt 0:00:12]} 45. Ke5 {[%emt 0:00:19]} Re3+ {[%emt 0:00:06]} 46. Kxf5 {[%emt 0:00:09]} Rf3+ {[%emt 0:00:03]} 47. Ke5 {[%emt 0:00:06]} Re3+ {[%emt 0:00:04] Ke4} 1/2-1/2

[Event "WYCC 2018 O16"]
[Site "Halkidiki"]
[Date "2018.10.29"]
[Round "10"]
[White "Ibrahimli, Murad"]
[Black "Bekturov, Tamerlan"]
[Result "1/2-1/2"]
[ECO "E16"]
[WhiteElo "2379"]
[BlackElo "2297"]
[Annotator "NA"]
[PlyCount "88"]
[EventDate "2018.10.20"]
[EventType "swiss"]
[EventCountry "GRE"]
[SourceTitle "playchess.com"]
[Source "ChessBase"]
[SourceQuality "1"]
[TimeControl "40/5400+30:1800+30"]

1. d4 {[%emt 0:00:00]} Nf6 {[%emt 0:00:00]} 2. c4 {[%emt 0:00:00]} e6 {[%emt 0:00:00]} 3. Nf3 {[%emt 0:00:00]} Bb4+ {[%emt 0:00:15]} 4. Bd2 {[%emt 0:00:04]} Qe7 {[%emt 0:00:11]} 5. Qc2 {[%emt 0:00:29]} Bxd2+ {[%emt 0:03:33]} 6. Nbxd2 {[%emt 0:00:09]} d6 {[%emt 0:00:31]} 7. e3 {[%emt 0:03:36]} e5 {[%emt 0:07:08]} 8. Bd3 {[%emt 0:02:17]} O-O {[%emt 0:01:09]} 9. O-O {[%emt 0:06:38] E11: Damenindisch (Bogoljubow-Variante)} Re8 {[%emt 0:02:27]} 10. dxe5 {[%emt 0:05:32]} dxe5 {[%emt 0:00:08] LiveBook: 3 Games} 11. Ng5 {[%emt 0:00:04]} h6 {[%emt 0:09:30]} 12. Nge4 {[%emt 0:00:06]} Na6 $146 {[%emt 0:05:12]} ({Vorgänger:} 12... Nbd7 13. Nxf6+ Nxf6 14. Ne4 {½-½ (14) Benitah,Y (2382)-Apicella,M (2529) Belfort 2010}) 13. a3 {[%emt 0:09:04]} Nxe4 {[%emt 0:00:37]} 14. Bxe4 {[%emt 0:00:28]} Nc5 {[%emt 0:00:53]} 15. Bd5 {[%emt 0:30:22]} c6 {[%emt 0:05:02]} 16. Bf3 {[%emt 0:00:48]} e4 $15 {[%emt 0:09:53]} 17. Be2 {[%emt 0:00:11]} Bf5 {[%emt 0:00:38]} 18. b4 {[%emt 0:00:50]} Nd3 {[%emt 0:03:28]} 19. Bxd3 {[%emt 0:00:36]} exd3 {[%emt 0:00:17]} 20. Qc3 {[%emt 0:00:21]} Qg5 {[%emt 0:03:41]} 21. Kh1 {[%emt 0:01:52]} Rad8 {[%emt 0:07:48]} 22. c5 {[%emt 0:08:02]} Re6 {[%emt 0:13:45]} 23. Rae1 {[%emt 0:04:10]} Rg6 {[%emt 0:01:54]} 24. Rg1 {[%emt 0:00:55]} Be6 {[%emt 0:06:25]} 25. e4 {[%emt 0:16:38]} f5 {[%emt 0:09:45]} 26. Re3 {[%emt 0:02:18]} Qh4 {[%emt 0:05:09]} 27. Rh3 {[%emt 0:05:16]} Qf6 {[%emt 0:02:11]} 28. e5 {[%emt 0:00:20]} Qe7 {[%emt 0:00:15]} 29. Rxd3 {[%emt 0:00:16]} Bd5 {[%emt 0:00:50]} 30. f3 {[%emt 0:02:43]} f4 {[%emt 0:00:27]} 31. Nc4 {[%emt 0:00:37]} Rg5 {[%emt 0:01:01]} 32. Nd6 {[%emt 0:00:37]} Rh5 {[%emt 0:01:11]} 33. h3 {[%emt 0:00:29]} Rd7 {[%emt 0:00:31]} 34. Rd4 {[%emt 0:00:30]} Qg5 {[%emt 0:00:39]} 35. Rxd5 {[%emt 0:00:37]} cxd5 {[%emt 0:00:13]} 36. Re1 {[%emt 0:00:29]} Re7 {[%emt 0:00:37]} 37. e6 {[%emt 0:00:24]} Qg6 {[%emt 0:00:25]} 38. c6 {[%emt 0:00:09]} bxc6 {[%emt 0:00:33]} 39. Qxc6 {[%emt 0:00:16]} Qg3 {[%emt 0:00:36]} 40. Re2 {[%emt 0:00:00]} Kh7 {[%emt 0:00:00]} 41. Qc2+ {[%emt 0:15:33]} Qg6 {[%emt 0:07:24]} 42. Qxg6+ {[%emt 0:00:25]} Kxg6 {[%emt 0:00:04]} 43. Nc8 {[%emt 0:00:04]} Re8 {[%emt 0:00:06]} 44. Nd6 {[%emt 0:00:07]} Re7 {[%emt 0:00:06]} 1/2-1/2

[Event "WYCC 2018 O16"]
[Site "Halkidiki"]
[Date "2018.10.29"]
[Round "10"]
[White "Gatineau, Yovann"]
[Black "Kamer, Kayra"]
[Result "0-1"]
[ECO "A45"]
[WhiteElo "2376"]
[BlackElo "2290"]
[Annotator "NA"]
[PlyCount "80"]
[EventDate "2018.10.20"]
[EventType "swiss"]
[EventCountry "GRE"]
[SourceTitle "playchess.com"]
[Source "ChessBase"]
[SourceQuality "1"]
[TimeControl "40/5400+30:1800+30"]

1. d4 {[%emt 0:00:00]} Nf6 {[%emt 0:00:00]} 2. Bf4 {[%emt 0:00:20]} g6 {[%emt 0:01:36]} 3. Nc3 {[%emt 0:01:22]} d5 {[%emt 0:02:41]} 4. e3 {[%emt 0:00:22]} Bg7 {[%emt 0:00:28]} 5. h4 {[%emt 0:04:07]} a6 {[%emt 0:03:27]} 6. h5 {[%emt 0:00:04]} Nxh5 {[%emt 0:02:59]} 7. Rxh5 {[%emt 0:00:04]} gxh5 {[%emt 0:00:03]} 8. Qxh5 {[%emt 0:00:06]} Be6 {[%emt 0:02:19]} 9. Nf3 {[%emt 0:02:34]} Nd7 {[%emt 0:08:06]} 10. Nxd5 {[%emt 0:02:43]} Nf6 {[%emt 0:00:22]} 11. Nxf6+ {[%emt 0:00:05]} Bxf6 {[%emt 0:00:03]} 12. e4 {[%emt 0:08:13]} Bxd4 {[%emt 0:08:20]} 13. c3 {[%emt 0:01:22]} Bf6 {[%emt 0:01:34]} 14. Rd1 {[%emt 0:02:15]} Qc8 {[%emt 0:00:41]} 15. Qh6 {[%emt 0:00:27]} Rg8 {[%emt 0:13:51]} 16. e5 {[%emt 0:00:44]} Bg7 {[%emt 0:00:06]} 17. Qxh7 {[%emt 0:00:16]} Kf8 {[%emt 0:00:03]} 18. Ng5 {[%emt 0:04:39]} Rh8 $11 {[%emt 0:15:08]} ({Much less strong is} 18... Bxa2 19. Qe4 $17) 19. Qe4 {[%emt 0:04:22]} c6 {[%emt 0:02:17]} 20. Be3 {[%emt 0:09:37]} Bd5 {[%emt 0:03:43]} 21. Qf4 {[%emt 0:03:41]} Bh6 {[%emt 0:00:26]} 22. c4 {[%emt 0:25:39]} Bxg5 {[%emt 0:00:06]} 23. Qxg5 {[%emt 0:00:03]} Be4 {[%emt 0:00:05]} 24. Bc5 {[%emt 0:01:35]} Qe6 {[%emt 0:02:03]} 25. Rd4 {[%emt 0:03:17]} Bg6 {[%emt 0:00:34]} 26. Be2 {[%emt 0:02:34]} Bf5 {[%emt 0:05:04]} 27. g4 {[%emt 0:06:29]} Bb1 {[%emt 0:01:19]} 28. Rf4 Rh1+ 29. Kd2 Rd8+ 30. Kc3 Rc1+ 31. Kb3 b5 32. Rf6 Rxc4 33. a3 a5 34. Bxe7+ {[%emt 0:18:53]} Qxe7 {[%emt 0:16:23]} 35. Bxc4 {[%emt 0:00:42]} bxc4+ {[%emt 0:00:23]} 36. Kc3 {[%emt 0:00:38]} Rd3+ {[%emt 0:02:15]} 37. Kxc4 {[%emt 0:00:05]} Rh3 {[%emt 0:00:25]} 38. f3 {[%emt 0:00:42]} Ba2+ {[%emt 0:03:09]} 39. Kd4 {[%emt 0:00:15]} c5+ {[%emt 0:00:28]} 40. Ke3 {[%emt 0:00:00]} Bd5 {[%emt 0:00:00] Kd4} 0-1

[Event "WYCC 2018 O16"]
[Site "Halkidiki"]
[Date "2018.10.29"]
[Round "10"]
[White "Stoleriu, George"]
[Black "Alivodic, Dario"]
[Result "1/2-1/2"]
[ECO "C15"]
[WhiteElo "2362"]
[BlackElo "2082"]
[Annotator "NA"]
[PlyCount "48"]
[EventDate "2018.10.20"]
[EventType "swiss"]
[EventCountry "GRE"]
[SourceTitle "playchess.com"]
[Source "ChessBase"]
[SourceQuality "1"]
[TimeControl "40/5400+30:1800+30"]

1. e4 {[%emt 0:00:00]} e6 {[%emt 0:00:00]} 2. d4 {[%emt 0:00:00]} d5 {[%emt 0:00:00]} 3. Nc3 {[%emt 0:00:00]} Bb4 {[%emt 0:00:00]} 4. exd5 {[%emt 0:00:00]} exd5 {[%emt 0:00:00]} 5. Bd3 {[%emt 0:00:00] LiveBook: 1894 Partien} Nc6 {[%emt 0:00:00]} 6. a3 {[%emt 0:00:32]} Bxc3+ {[%emt 0:01:16]} 7. bxc3 {[%emt 0:00:10]} Nge7 {[%emt 0:00:40]} 8. Qh5 {[%emt 0:04:56]} g6 {[%emt 0:01:32] C01: Französische Verteidigung (Abtauschvariante)} (8... Be6 9. Ne2 Qd7 10. Ng3 O-O-O 11. h3 g6 12. Qf3 Nf5 13. Nxf5 Bxf5 14. Bxf5 gxf5 15. O-O Rde8 16. Bf4 Re4 17. g3 h5 {1-0 (30) Onischuk,V (2612)-Kovalenko,I (2700) Berlin 2015}) 9. Qf3 {[%emt 0:08:09]} Bf5 {[%emt 0:02:32]} 10. Bg5 {[%emt 0:09:24]} (10. Rb1 $14) 10... Qd6 {[%emt 0:03:55]} 11. Ne2 {[%emt 0:06:04]} f6 {[%emt 0:02:57]} 12. Bf4 {[%emt 0:05:38]} Qd7 {[%emt 0:00:13]} 13. a4 $146 {[%emt 0:10:27]} ({Vorgänger:} 13. h3 O-O {½-½ (13) Standke,W-Hammel,R Mecklenburg VP 1999}) 13... O-O-O {[%emt 0:08:55]} 14. h3 {[%emt 0:13:56]} h5 {[%emt 0:03:10]} 15. Ng3 {[%emt 0:09:30]} Bxd3 {[%emt 0:01:36]} 16. cxd3 {[%emt 0:01:33]} Rde8 {[%emt 0:02:39]} 17. Kd2 {[%emt 0:00:51] [#]} Nf5 {[%emt 0:02:00]} ({Better is} 17... h4 $1 $17 {[%cal Rh4g3]} 18. Nf1 g5) 18. Nxf5 $15 {[%emt 0:01:46]} Qxf5 {[%emt 0:00:01]} 19. h4 {[%emt 0:03:07]} Re6 {[%emt 0:02:33]} 20. Rh3 {[%emt 0:06:24]} Na5 {[%emt 0:08:58]} 21. Kc2 {[%emt 0:01:08]} Rb6 {[%emt 0:09:03]} 22. Be3 {[%emt 0:01:11]} Qd7 {[%emt 0:00:39]} 23. Rhh1 {[%emt 0:01:49]} Re8 {[%emt 0:00:35]} 24. Ra3 {[%emt 0:01:30]} f5 {[%emt 0:07:05]} 1/2-1/2

[Event "WYCC 2018 O16"]
[Site "Halkidiki"]
[Date "2018.10.29"]
[Round "10"]
[White "Baenziger, Fabian"]
[Black "Carlsson, Ludvig"]
[Result "1-0"]
[ECO "A40"]
[WhiteElo "2355"]
[BlackElo "2058"]
[Annotator "NA"]
[PlyCount "45"]
[EventDate "2018.10.20"]
[EventType "swiss"]
[EventCountry "GRE"]
[SourceTitle "playchess.com"]
[Source "ChessBase"]
[SourceQuality "1"]
[TimeControl "40/5400+30:1800+30"]

1. d4 {[%emt 0:00:00] Ribli,Z} g6 {[%emt 0:00:00]} 2. Nf3 {[%emt 0:00:00]} Bg7 {[%emt 0:00:00]} 3. g3 {[%emt 0:00:00]} d6 {[%emt 0:00:02]} 4. Bg2 {[%emt 0:00:00]} Nd7 {[%emt 0:00:07]} 5. O-O {[%emt 0:00:14]} e5 {[%emt 0:00:07]} 6. c4 {[%emt 0:00:40]} Ne7 {[%emt 0:00:08]} 7. Nc3 {[%emt 0:01:19]} O-O {[%emt 0:00:29]} 8. e4 {[%emt 0:01:11]} exd4 {[%emt 0:00:08]} 9. Nxd4 {[%emt 0:00:05]} Nc6 {[%emt 0:00:07]} 10. Nde2 {[%emt 0:02:59]} a5 {[%emt 0:00:34]} 11. f4 {[%emt 0:05:57] A42: Modern Defence: Averbakh Variation} Nc5 {[%emt 0:07:26]} 12. Be3 {[%emt 0:00:56]} Re8 {[%emt 0:03:02]} 13. h3 {[%emt 0:03:38]} a4 {[%emt 0:08:18] [#]} 14. Rb1 $146 {[%emt 0:03:06]} ({Predecessor:} 14. Rc1 Be6 15. b3 Nb4 16. Rb1 axb3 17. axb3 c6 18. Bd4 Bxd4+ 19. Nxd4 {1-0 (41) Bocharov,D (2574)-Tkachiev,V (2625) Kazan 2005 CBM 109 [Ribli,Z]}) 14... Ra5 {[%emt 0:09:38]} 15. b4 {[%emt 0:09:24]} axb3 {[%emt 0:00:35]} 16. axb3 {[%emt 0:00:05]} Na6 {[%emt 0:03:13]} 17. Qd2 {[%emt 0:06:05]} Nab4 {[%emt 0:04:35]} 18. Rbd1 {[%emt 0:10:09]} f5 {[%emt 0:04:05]} 19. Nd4 $14 {[%emt 0:03:44]} fxe4 {[%emt 0:03:21]} 20. Nxc6 {[%emt 0:01:46]} Nxc6 {[%emt 0:04:53]} 21. Nxe4 {[%emt 0:01:05]} Ra3 {[%emt 0:01:38]} 22. Ng5 {[%emt 0:01:24]} Bf6 {[%emt 0:04:30]} 23. Qd5+ {[%emt 0:02:06]} 1-0

[Event "WYCC 2018 O16"]
[Site "Halkidiki"]
[Date "2018.10.29"]
[Round "10"]
[White "Mitsis, Georgios"]
[Black "Gabizon, Eyal"]
[Result "0-1"]
[ECO "E92"]
[WhiteElo "2350"]
[BlackElo "2205"]
[Annotator "NA"]
[PlyCount "90"]
[EventDate "2018.10.20"]
[EventType "swiss"]
[EventCountry "GRE"]
[SourceTitle "playchess.com"]
[Source "ChessBase"]
[SourceQuality "1"]
[TimeControl "40/5400+30:1800+30"]

1. d4 {[%emt 0:00:00]} Nf6 {[%emt 0:00:00]} 2. Nf3 {[%emt 0:00:00]} g6 {[%emt 0:00:00]} 3. c4 {[%emt 0:00:00]} Bg7 {[%emt 0:00:00]} 4. Nc3 {[%emt 0:00:00]} O-O {[%emt 0:00:00]} 5. e4 {[%emt 0:00:00]} d6 {[%emt 0:00:00]} 6. Be2 {[%emt 0:00:08]} e5 {[%emt 0:00:00]} 7. Be3 {[%emt 0:00:09]} Nc6 {[%emt 0:00:03]} 8. d5 {[%emt 0:00:23]} Ne7 {[%emt 0:00:05]} 9. Nd2 {[%emt 0:00:11]} Nd7 {[%emt 0:03:25]} 10. b4 {[%emt 0:03:44]} f5 {[%emt 0:07:59]} 11. f3 {[%emt 0:01:23]} c5 {[%emt 0:14:34] E92: King's Indian: Classical: 6 Be2 e5: 7 dxe5, 7 Be3 and Petrosian System without 7...Nbd7} (11... Nf6 12. c5 Nh5 13. g3 Nf4 14. Bf1 fxe4 15. fxe4 h5 16. Nc4 Bg4 17. Qd2 Nh3 18. Be2 Kh7 19. Bxg4 hxg4 20. O-O-O {1-0 (39) Del Rio de Angelis,S (2556)-Perez Mitjans,O (2442) Atarrabia 2016}) 12. dxc6 {[%emt 0:02:24]} bxc6 $146 {[%emt 0:01:01]} ({Predecessor:} 12... Nxc6 13. Rb1 Bh6 14. Bf2 Nf6 15. O-O Be6 16. Re1 Nh5 17. Nf1 Nf4 18. Ng3 Nh3+ 19. gxh3 {1-0 (30) Jimenez Fernandez,A (2003)-Fernandez Rubio,R (1958) Spain 2010}) 13. O-O {[%emt 0:01:53]} Nf6 {[%emt 0:01:08]} 14. Nb3 {[%emt 0:02:43]} Be6 {[%emt 0:02:27]} 15. Qc2 {[%emt 0:02:33]} d5 {[%emt 0:06:14]} 16. Rad1 {[%emt 0:07:14]} d4 {[%emt 0:01:54]} 17. Na4 {[%emt 0:06:00]} f4 {[%emt 0:18:50]} 18. Bf2 {[%emt 0:03:51]} g5 {[%emt 0:00:05]} 19. c5 {[%emt 0:00:16]} g4 {[%emt 0:03:23]} 20. Bxd4 {[%emt 0:11:38]} exd4 {[%emt 0:00:10]} 21. Nxd4 {[%emt 0:00:07]} Bd7 {[%emt 0:03:11]} 22. Bc4+ {[%emt 0:01:59]} Kh8 {[%emt 0:00:41]} 23. Ne6 {[%emt 0:00:56]} Qe8 {[%emt 0:00:35]} 24. Nxf8 {[%emt 0:02:44]} Bxf8 {[%emt 0:00:08]} 25. Rd6 {[%emt 0:04:55]} Bg7 {[%emt 0:03:51]} 26. Rfd1 {[%emt 0:00:43]} gxf3 {[%emt 0:03:22]} 27. gxf3 {[%emt 0:00:27]} Ng6 {[%emt 0:13:06]} 28. Qf2 {[%emt 0:06:28]} Ne5 {[%emt 0:03:11]} 29. Be2 {[%emt 0:00:09]} Qg6+ {[%emt 0:02:26]} 30. Kh1 $15 {[%emt 0:02:08]} Qh5 {[%emt 0:05:00]} 31. Nb2 {[%emt 0:08:14]} Rf8 {[%emt 0:06:05]} 32. Nd3 {[%emt 0:02:08]} Nxd3 {[%emt 0:00:04]} 33. R1xd3 {[%emt 0:00:41]} Be8 {[%emt 0:00:09]} 34. Rd8 {[%emt 0:00:22]} Qf7 {[%emt 0:01:39]} 35. Bd1 {[%emt 0:01:15]} Nd7 {[%emt 0:00:30]} 36. Bb3 {[%emt 0:01:54]} Qe7 {[%emt 0:00:04]} 37. Ra8 {[%emt 0:00:09]} Ne5 {[%emt 0:00:06]} 38. Rdd8 {[%emt 0:00:16]} Bf6 {[%emt 0:00:46]} 39. Rdb8 {[%emt 0:05:36]} Bg7 {[%emt 0:01:49]} 40. Qf1 {[%emt 0:00:00]} Ng4 {[%emt 0:00:00]} 41. Qg2 {[%emt 0:12:40]} Ne3 {[%emt 0:09:21]} 42. Qh3 {[%emt 0:01:04]} Qe5 {[%emt 0:01:55]} 43. Rd8 {[%emt 0:05:38]} Qa1+ {[%emt 0:00:34]} 44. Bd1 {[%emt 0:00:07]} Qc3 {[%emt 0:05:38]} 45. Qh4 {[%emt 0:00:25]} Nxd1 {[%emt 0:02:37]} 0-1